fUST/lending_fUST_20250613
["ID","MTS","AMOUNT","RATE_DAILY","PERIOD"]
[365553144,1749780643351,-5285.2,0.00022403,2]
[365553146,1749780643361,-817.72631165,0.0002329,2]
[365553148,1749780643370,-295.74,0.0002329,3]
[365553150,1749780643382,-887.25,0.0002329,3]
[365553153,1749780643392,-591.48,0.00023293,3]
[365553155,1749780643406,-3000.0,0.000233,2]
[365553158,1749780643416,-578.29680835,0.0002331,2]
[365553160,1749780643430,-2421.70319165,0.0002331,2]
[365553162,1749780643440,-3000.0,0.0002332,2]
[365553164,1749780643450,-721.50214699,0.0002333,2]
[365553166,1749780643462,-1668.97019674,0.0002333,2]
[365553168,1749780643475,-609.52765627,0.0002333,2]
[365553170,1749780643484,-460.0,0.00023332,4]
[365553172,1749780643494,-194.74790003,0.00023332,4]
[365553405,1749780646206,-176.3710096,0.00023288,2]
[365553407,1749780646218,-573.6747916,0.000233,2]
[365553409,1749780646228,-158.8399287,0.000233,2]
[365553412,1749780646238,-265.25209997,0.00023332,4]
[365553414,1749780646249,-1597.61,0.00023332,4]
[365553416,1749780646260,-460.0,0.00023332,4]
[365553418,1749780646270,-3000.0,0.0002334,2]
[365553420,1749780646282,-3000.0,0.0002335,2]
[365553422,1749780646292,-3000.0,0.0002336,2]
[365553424,1749780646304,-3000.0,0.0002337,2]
[365553426,1749780646315,-7046.93,0.00023377,2]
[365553428,1749780646326,-3000.0,0.0002338,2]
[365553430,1749780646336,-3000.0,0.0002339,2]
[365553432,1749780646346,-1164.14,0.0002339,10]
[365553434,1749780646357,-2032.34,0.0002339,10]
[365553436,1749780646366,-460.0,0.00023395,4]
[365553438,1749780646381,-460.0,0.00023395,2]
[365553440,1749780646391,-3000.0,0.000234,2]
[365553442,1749780646401,-176.9539549,0.000234,2]
[365553444,1749780646411,-158.8399287,0.000234,2]
[365553446,1749780646421,-573.6747916,0.000234,2]
[365553448,1749780646430,-153.0,0.000234,2]
[365553451,1749780646440,-317.9304091,0.000234,2]
[365553453,1749780646450,-3000.0,0.0002341,2]
[365553455,1749780646459,-1477.68653786,0.0002342,2]
[365553464,1749780646548,-1522.31346214,0.0002342,2]
[365553466,1749780646558,-45.01663543,0.0002343,2]
[365553568,1749780647621,-460.0,0.00021999,4]
[365553570,1749780647631,-2954.98336457,0.0002343,2]
[365553572,1749780647641,-3264.56127,0.0002344,2]
[365553575,1749780647651,-574.97512,0.00023506,3]
[365553577,1749780647662,-460.0,0.00023543,4]
[365553579,1749780647672,-460.0,0.00023547,4]
[365553581,1749780647682,-460.0,0.00023557,4]
[365553583,1749780647692,-460.0,0.00023557,4]
[365553585,1749780647701,-460.0,0.00023557,4]
[365553587,1749780647712,-460.0,0.00023606,4]
[365553589,1749780647721,-1597.61,0.00023606,4]
[365553591,1749780647731,-460.0,0.00023606,4]
[365553593,1749780647742,-1693.62,0.00023659,10]
[365553595,1749780647752,-460.0,0.00023669,4]
[365553597,1749780647762,-460.0,0.00023669,2]
[365553599,1749780647772,-6650.10646576,0.000237,2]
[365553601,1749780647783,-229.7508257,0.00023724,2]
[365553603,1749780647795,-160.0,0.00023724,2]
[365553605,1749780647805,-407.078,0.00023754,2]
[365553608,1749780647816,-507.0,0.0002379,3]
[365553610,1749780647827,-218.40814193,0.00023799,2]
[365553612,1749780647837,-687.83838588,0.00023799,2]
[365553614,1749780647846,-687.83838588,0.00023799,2]
[365553616,1749780647856,-687.83838588,0.00023799,2]
[365553618,1749780647866,-687.83838588,0.00023799,2]
[365553620,1749780647876,-687.83838588,0.00023799,2]
[365553622,1749780647888,-687.83838588,0.00023799,2]
[365553624,1749780647898,-687.83838588,0.00023799,2]
[365553626,1749780647908,-687.83838588,0.00023799,2]
[365553628,1749780647917,-687.83838588,0.00023799,2]
[365553630,1749780647927,-687.83838588,0.00023799,2]
[365553632,1749780647939,-687.83838588,0.00023799,2]
[365553634,1749780647948,-687.83838588,0.00023799,2]
[365553636,1749780647959,-687.83838588,0.00023799,2]
[365553638,1749780647969,-687.83838588,0.00023799,2]
[365553640,1749780647978,-687.83838588,0.00023799,2]
[365553642,1749780647988,-731.60991952,0.00023799,2]
[365553645,1749780647998,-731.60991952,0.00023799,2]
[365553647,1749780648008,-731.60991952,0.00023799,2]
[365553649,1749780648018,-731.60991952,0.00023799,2]
[365553651,1749780648028,-731.60991952,0.00023799,2]
[365553653,1749780648040,-731.60991952,0.00023799,2]
[365553655,1749780648050,-731.60991952,0.00023799,2]
[365553657,1749780648060,-731.60991952,0.00023799,2]
[365553659,1749780648071,-731.60991952,0.00023799,2]
[365553661,1749780648082,-98960.22211513,0.000238,3]
[365554465,1749780684765,2518.0,0.000246,120]
[365554467,1749780705811,155.2994865,0.00024926,60]
[365554469,1749780869862,192.0,0.00024922,60]
[365554470,1749780899218,160.0,0.00024922,60]
[365554471,1749780931376,190.0,0.00024658,120]
[365554472,1749780947022,987.48,0.00018,2]
[365554473,1749780991148,160.0,0.000201,19]
[365554474,1749781013798,240.0,0.00024922,60]
[365554476,1749781052657,200.0,0.00024658,120]
[365554485,1749781536121,335.802047,0.00013699,2]
[365554486,1749781555143,-1200.0,0.00019999,2]
[365554487,1749781555166,-300.0,0.00019999,2]
[365554488,1749781555188,-9620.0,0.0002,2]
[365554489,1749781555210,-335.802047,0.00020187,2]
[365554490,1749781555233,-300.0,0.00020445,2]
[365554491,1749781555255,-166.0,0.00020445,2]
[365554492,1749781555279,-1450.61,0.00020446,2]
[365554493,1749781555300,-454.69690413,0.00020502,2]
[365554494,1749781555322,-500.0,0.00020593,2]
[365554495,1749781555351,-398.57269494,0.000209,4]
[365554496,1749781555372,-3000.0,0.00021,2]
[365554497,1749781555402,-398.57269466,0.00021038,4]
[365554498,1749781555422,-191.5671369,0.00021092,2]
[365554499,1749781555451,-398.57269466,0.00021176,4]
[365554500,1749781555471,-13763.45292368,0.00021176,2]
[365554501,1749781555494,-21052.4345889,0.00021202,2]
[365554502,1749781555524,-398.57269466,0.00021314,5]
[365554503,1749781555546,-972.02490969,0.0002142,2]
[365554504,1749781641203,-1419.78,0.00020434,2]
[365554505,1749781641227,-2839.56,0.00021407,2]
[365554506,1749781641257,-398.57269466,0.00021452,5]
[365554507,1749781641288,-398.57269466,0.0002159,5]
[365554508,1749781641309,-150.0,0.000217,2]
[365554509,1749781641339,-398.57269466,0.00021728,5]
[365554510,1749781641364,-420.0,0.00021777,2]
[365554511,1749781641394,-398.57269466,0.00021866,6]
[365554512,1749781641415,-3750.53503205,0.00021986,2]
[365554513,1749781641437,-460.0,0.00021995,4]
[365554514,1749781641459,-460.0,0.00021997,4]
[365554515,1749781641482,-460.0,0.00021997,4]
[365554516,1749781641503,-1331.34,0.00021998,4]
[365554517,1749781641525,-379.84888959,0.00021998,4]
[365554518,1749781641548,-340.0,0.00021998,4]
[365554519,1749781641571,-460.0,0.00021998,4]
[365554520,1749781641603,-398.57269466,0.00022003,6]
[365554521,1749781641637,-398.57269466,0.00022141,6]
[365554522,1749781641663,-460.0,0.00022269,4]
[365554523,1749781641686,-460.0,0.00022271,4]
[365554524,1749781641708,-1331.34,0.00022272,4]
[365554525,1749781641731,-460.0,0.00022272,4]
[365554526,1749781641761,-398.57269466,0.00022279,6]
[365554527,1749781641787,-4259.34,0.0002238,2]
[365554528,1749781641817,-398.57269466,0.00022417,7]
[365554529,1749781641838,-158.8399287,0.00022466,2]
[365554530,1749781641858,-153.0,0.00022466,2]
[365554531,1749781641881,-567.9267774,0.00022466,2]
[365554532,1749781641902,-154.9145514,0.00022466,2]
[365554533,1749781641923,-229.78555783,0.00022531,2]
[365554534,1749781641945,-160.0,0.00022531,2]
[365554535,1749781641967,-160.0,0.00022531,2]
[365554536,1749781641986,-213.24139183,0.00022531,2]
[365554537,1749781642009,-512.79178549,0.00022543,4]
[365554538,1749781642035,-460.0,0.00022545,4]
[365554539,1749781642057,-1331.34,0.00022546,4]
[365554540,1749781642080,-340.0,0.00022546,4]
[365554541,1749781642111,-398.57269466,0.00022555,7]
[365554542,1749781642136,-166.025,0.00022588,2]
[365554543,1749781642159,-207.4,0.00022588,2]
[365554544,1749781642181,-180.36399387,0.00022588,2]
[365554545,1749781642212,-398.57269466,0.00022693,7]
[365554546,1749781642233,-160.1006512,0.00022731,2]
[365554547,1749781642253,-500.0,0.00022785,2]
[365554548,1749781642279,-460.0,0.00022819,4]
[365554549,1749781642301,-1331.34,0.0002282,4]
[365554550,1749781642323,-460.0,0.0002282,4]
[365554551,1749781642348,-460.0,0.0002282,4]
[365554552,1749781642377,-398.57269466,0.00022831,8]
[365554553,1749781642406,-398.57269466,0.00022969,8]
[365554554,1749781642426,-460.0,0.00022999,4]
[365554555,1749781642449,-460.0,0.00023093,4]
[365554556,1749781642470,-1331.34,0.00023094,4]
[365554557,1749781642491,-431.51029717,0.00023094,4]
[365554558,1749781642519,-460.0,0.00023094,4]
[365554559,1749781642551,-398.57269466,0.00023107,8]
[365554560,1749781642580,-398.57269466,0.00023245,8]
[365554561,1749781642600,-11864.63410519,0.00023254,2]
[365554562,1749781642622,-160.0,0.00023254,2]
[365554563,1749781642646,-424.32678023,0.00023257,2]
[365554564,1749781642667,-844.94977992,0.00023257,2]
[365554565,1749781642693,-160.0,0.00023257,2]
[365554566,1749781642722,-460.0,0.00023259,4]
[365554567,1749781642748,-460.0,0.00023259,2]
[365554568,1749781642770,-250.60232476,0.00023269,2]
[365554569,1749781642815,-329.9306565,0.00023273,4]
[365554570,1749781642848,-1146.7080698,0.00023288,2]
[365554571,1749781642878,-492.835818,0.00023324,3]
[365554572,1749781642907,-160.0,0.00023342,2]
[365554573,1749781642936,-5679.13,0.00023353,2]
[365554574,1749781642967,-460.0,0.00023355,4]
[365554575,1749781642998,-460.0,0.00023355,4]
[365554576,1749781643025,-486.46391997,0.00023355,4]
[365554577,1749781643052,-460.0,0.00023355,4]
[365554578,1749781643088,-460.0,0.00023367,4]
[365554579,1749781643117,-1331.34,0.00023368,4]
[365554580,1749781643148,-460.0,0.00023368,4]
[365554581,1749781643183,-398.57269466,0.00023383,9]
[365554582,1749781643209,-2009.83410739,0.000235,2]
[365554583,1749781643241,-398.57269466,0.00023521,9]
[365554584,1749781643269,-460.0,0.00023533,4]
[365554585,1749781643298,-460.0,0.00023533,2]
[365554586,1749781643323,-160.0,0.00023536,3]
[365554587,1749781643350,-165.89792811,0.000236,2]
[365554588,1749781643378,-2000.0,0.000236,2]
[365554589,1749781643408,-460.0,0.00023629,4]
[365554590,1749781643436,-460.0,0.00023629,4]
[365554591,1749781643463,-460.0,0.00023629,4]
[365554592,1749781643488,-460.0,0.00023641,4]
[365554593,1749781643511,-1331.34,0.00023642,4]
[365554594,1749781643541,-460.0,0.00023642,4]
[365554595,1749781643579,-398.57269466,0.00023659,9]
[365554596,1749781643606,-835.15920933,0.0002366,2]
[365554597,1749781643634,-307.04,0.0002369,3]
[365554598,1749781643657,-153.52,0.0002369,3]
[365554599,1749781643683,-460.59,0.0002369,3]
[365554600,1749781643708,-1411.35,0.0002369,10]
[365554601,1749781643733,-500.0,0.00023699,2]
[365554602,1749781643756,-500.0,0.00023699,2]
[365554603,1749781643786,-500.0,0.00023699,2]
[365554604,1749781643809,-631.66631151,0.00023699,2]
[365554605,1749781643833,-5426.0,0.000237,2]
[365554606,1749781643857,-5426.0,0.000237,2]
[365554607,1749781643881,-5426.0,0.000237,2]
[365554608,1749781643906,-5426.0,0.000237,2]
[365554609,1749781643931,-5426.0,0.000237,2]
[365554610,1749781643955,-5426.0,0.000237,2]
[365554611,1749781643979,-5426.0,0.000237,2]
[365554612,1749781644002,-5426.0,0.000237,2]
[365554613,1749781644027,-1000.0,0.000237,2]
[365554614,1749781644050,-5226.86282902,0.000237,2]
[365554615,1749781644075,-176.0,0.00023712,2]
[365554616,1749781644100,-151.0,0.00023768,3]
[365554617,1749781644125,-151.0,0.00023768,3]
[365554618,1749781644149,-151.0,0.00023768,3]
[365554619,1749781644172,-151.0,0.00023768,3]
[365554620,1749781644196,-151.0,0.00023768,3]
[365554621,1749781644219,-151.0,0.00023768,3]
[365554622,1749781644241,-151.0,0.00023768,3]
[365554623,1749781644265,-151.0,0.00023768,3]
[365554624,1749781644290,-151.0,0.00023768,3]
[365554625,1749781644313,-151.0,0.00023768,3]
[365554626,1749781644338,-151.0,0.00023768,3]
[365554627,1749781644364,-151.0,0.00023768,3]
[365554628,1749781644535,-9.01251104,0.00023768,3]
[365554629,1749781653468,1478.55577966,0.00024928,120]
[365554630,1749781673349,-226.35468164,0.00018,2]
[365554634,1749781692383,5172.47439241,0.00024928,120]
[365554635,1749781707851,2072.3890034,0.000176,2]
[365554637,1749781717574,2280.48412032,0.00017,2]
[365554639,1749781723511,1147.13530826,0.000245,120]
[365554640,1749781723717,1072.29243331,0.0002,120]
[365554641,1749781724142,2385.94170439,0.00024928,120]
[365554642,1749781729328,-309.86784631,0.00018,5]
[365554643,1749781737186,501.0,0.00024657,120]
[365554644,1749781765157,-146.33465918,0.00018,2]
[365554645,1749781765178,-44.68682919,0.00018,5]
[365554646,1749781765203,-1239.08,0.0002044,2]
[365554647,1749781765224,-434.09046498,0.00020593,2]
[365554648,1749781773113,-65.90953502,0.00020593,2]
[365554649,1749781773137,-90.89046498,0.00021202,2]
[365554689,1749781837249,-501.37115514,0.00020283,2]
[365554691,1749781837259,-1223.31,0.000205,2]
[365554693,1749781837270,-89.00509502,0.00021202,2]
[365554695,1749781837279,-500.0,0.0002135,2]
[365554696,1749781837289,-2446.62,0.00021476,2]
[365554697,1749781837298,-150.0,0.000216,2]
[365554699,1749781837308,-415.9010358,0.00021894,2]
[365554701,1749781837318,-4480.9320235,0.00021995,2]
[365554703,1749781837327,-300.0,0.00022386,2]
[365554705,1749781837337,-460.0,0.00022393,4]
[365554707,1749781837346,-500.0,0.00022418,2]
[365554709,1749781837356,-3669.94,0.00022452,2]
[365554711,1749781837365,-1001.83206047,0.000225,2]
[365554713,1749781837375,-835.28007164,0.00022528,2]
[365554714,1749781837385,-424.32678023,0.00022528,2]
[365554716,1749781837394,-500.0,0.00022785,2]
[365554718,1749781837404,-187.3042873,0.0002282,4]
[365554720,1749781837413,-151.1670333,0.0002282,4]
[365554721,1749781837423,-500.0,0.000229,2]
[365554724,1749781837436,-422.430701,0.00023324,3]
[365554725,1749781837446,-160.0,0.00023331,2]
[365554727,1749781837455,-4893.25,0.00023428,2]
[365554729,1749781837464,-1000.0,0.00023448,2]
[365554731,1749781837474,-309.86784631,0.00023482,2]
[365554732,1749781837484,-165.89792811,0.000237,2]
[365554733,1749781837493,-3484.57521936,0.000237,2]
[365554734,1749781837503,-141.98748896,0.00023768,3]
[365554735,1749781837512,-151.0,0.00023768,3]
[365554736,1749781837521,-317.0,0.00023768,3]
[365554737,1749781837531,-151.0,0.00023768,3]
[365554738,1749781837541,-151.0,0.00023768,3]
[365554739,1749781837550,-317.0,0.00023768,3]
[365554740,1749781837559,-151.0,0.00023768,3]
[365554741,1749781837569,-313.9982552,0.00023768,3]
[365554742,1749781837578,-151.0,0.00023768,3]
[365554743,1749781837587,-151.0,0.00023768,3]
[365554744,1749781837599,-151.0,0.00023768,3]
[365554745,1749781837608,-151.0,0.00023768,3]
[365554746,1749781837618,-151.0,0.00023768,3]
[365554747,1749781837628,-151.0,0.00023768,3]
[365554748,1749781837637,-240.35793062,0.00023768,3]
[365554749,1749781837647,-500.0,0.00023773,2]
[365554750,1749781837656,-3250.2343992,0.0002378,5]
[365554751,1749781837665,-207.4,0.00023785,2]
[365554752,1749781837674,-1176.12,0.0002379,10]
[365554753,1749781837687,-980.1,0.0002379,10]
[365554754,1749781837700,-229.78555783,0.00023795,2]
[365554755,1749781837717,-507.71282359,0.00023798,2]
[365554756,1749781837727,-160.0,0.00023798,2]
[365554757,1749781837737,-155.0,0.00023799,2]
[365554758,1749781837747,-3514.33066319,0.00023799,2]
[365554759,1749781837756,-3514.33066319,0.00023799,2]
[365554760,1749781837767,-3514.33066319,0.00023799,2]
[365554761,1749781837777,-3514.33066319,0.00023799,2]
[365554762,1749781837787,-3514.33066319,0.00023799,2]
[365554764,1749781837806,-3514.33066319,0.00023799,2]
[365554765,1749781837817,-3514.33066319,0.00023799,2]
[365554766,1749781837827,-175089.31260671,0.000238,3]
[365554767,1749781837842,-13903.66793498,0.000238,3]
[365554768,1749781837858,-160.0,0.00023791,2]
[365554769,1749781837868,-333.52358549,0.000238,3]
[365554812,1749781840517,-816.75,0.0002379,10]
[365554814,1749781840527,-707.8299102,0.000238,3]
[365554926,1749781843735,-27186.99285803,0.000238,3]
[365554927,1749781843804,-23171.72237484,0.000238,3]
[365554928,1749781843816,-1774.685808,0.000238,3]
[365554929,1749781843827,-1437.4975208,0.000238,3]
[365554934,1749781847348,-14455.17711295,0.00023799,2]
[365554938,1749782112781,2995.0,0.00024924,120]
[365554942,1749782327258,152.254,0.00024925,60]
[365554944,1749782407134,155.0,0.00024925,60]
[365554946,1749782491716,638.15053238,0.00024658,120]
[365554971,1749782743104,-3155.31326184,0.000181,2]
[365554972,1749782743127,-300.0,0.00019999,2]
[365554973,1749782743152,-300.0,0.00019999,2]
[365554974,1749782743173,-9620.0,0.0002,2]
[365554975,1749782743194,-193.048305,0.00020365,2]
[365554976,1749782743214,-226.3546816,0.00020504,2]
[365554977,1749782743235,-500.0,0.00020593,2]
[365554978,1749782743257,-1080.57,0.00020616,2]
[365554979,1749782743277,-4402.8994607,0.00020734,2]
[365554980,1749782743306,-211.54103417,0.000209,4]
[365554981,1749782743336,-211.54103413,0.00021038,4]
[365554982,1749782743365,-211.54103413,0.00021176,4]
[365554983,1749782743388,-17598.05008725,0.00021176,2]
[365554984,1749782743416,-211.54103413,0.00021314,5]
[365554985,1749782743439,-460.0,0.00021444,4]
[365554986,1749782743473,-943.03,0.00021444,4]
[365554987,1749782743498,-460.0,0.00021444,4]
[365554988,1749782743521,-460.0,0.00021444,4]
[365554989,1749782743552,-211.54103413,0.00021452,5]
[365554990,1749782743582,-211.54103413,0.0002159,5]
[365554991,1749782743605,-2161.13,0.00021598,2]
[365554992,1749782743626,-943.03,0.00021718,4]
[365554993,1749782743653,-213.62665257,0.00021718,4]
[365554994,1749782743683,-211.54103413,0.00021728,5]
[365554995,1749782743705,-420.0,0.00021777,2]
[365554996,1749782743736,-211.54103413,0.00021866,6]
[365554997,1749782743758,-943.03,0.00021992,4]
[365554998,1749782743790,-211.54103413,0.00022003,6]
[365554999,1749782743819,-211.54103413,0.00022141,6]
[365555000,1749782743994,-943.03,0.00022266,4]
[365555001,1749782744025,-211.54103413,0.00022279,6]
[365555002,1749782744051,-460.0,0.00022393,4]
[365555003,1749782744080,-211.54103413,0.00022417,7]
[365555004,1749782744102,-165.216,0.0002242,2]
[365555005,1749782744125,-835.28007164,0.00022517,2]
[365555006,1749782744147,-229.78555783,0.00022517,2]
[365555007,1749782744168,-160.0,0.00022517,2]
[365555008,1749782744189,-943.03,0.0002254,4]
[365555009,1749782744219,-211.54103413,0.00022555,7]
[365555010,1749782744242,-3241.7,0.0002258,2]
[365555011,1749782744264,-207.4,0.00022588,2]
[365555012,1749782744286,-460.0,0.00022667,4]
[365555013,1749782744317,-211.54103413,0.00022693,7]
[365555014,1749782744340,-500.0,0.00022785,2]
[365555015,1749782744362,-943.03,0.00022814,4]
[365555016,1749782744385,-460.0,0.0002282,4]
[365555017,1749782744415,-211.54103413,0.00022831,8]
[365555018,1749782744440,-460.0,0.00022941,4]
[365555019,1749782744471,-211.54103413,0.00022969,8]
[365555020,1749782744494,-460.0,0.00022999,4]
[365555021,1749782744519,-460.0,0.00022999,4]
[365555022,1749782744543,-10698.883462,0.00023,2]
[365555023,1749782744564,-371.0183888,0.00023014,2]
[365555024,1749782744586,-943.03,0.00023088,4]
[365555025,1749782744608,-460.0,0.00023094,4]
[365555026,1749782744639,-211.54103413,0.00023107,8]
[365555027,1749782744661,-460.0,0.00023215,4]
[365555028,1749782744689,-211.54103413,0.00023245,8]
[365555029,1749782744713,-460.0,0.00023273,4]
[365555030,1749782744737,-158.8399287,0.00023288,2]
[365555031,1749782744758,-362.083458,0.00023324,3]
[365555032,1749782744778,-460.0,0.00023359,4]
[365555033,1749782744799,-460.0,0.00023359,2]
[365555034,1749782744820,-943.03,0.00023362,4]
[365555035,1749782744841,-512.29525323,0.00023368,4]
[365555036,1749782744871,-211.54103413,0.00023383,9]
[365555037,1749782744894,-460.0,0.00023489,4]
[365555038,1749782744924,-211.54103413,0.00023521,9]
[365555039,1749782744947,-460.0,0.00023547,4]
[365555040,1749782744971,-4322.27,0.00023562,2]
[365555041,1749782744993,-460.0,0.00023633,4]
[365555042,1749782745015,-460.0,0.00023633,2]
[365555043,1749782745039,-943.03,0.00023636,4]
[365555044,1749782745067,-211.54103413,0.00023659,9]
[365555045,1749782745088,-175.32788785,0.000237,2]
[365555046,1749782745110,-587.0,0.00023712,2]
[365555047,1749782745130,-424.32678023,0.00023753,2]
[365555048,1749782745152,-178.0,0.00023759,2]
[365555049,1749782745175,-460.0,0.00023763,4]
[365555050,1749782745196,-153.52,0.0002379,3]
[365555051,1749782745216,-460.56,0.0002379,3]
[365555052,1749782745237,-680.63,0.0002379,10]
[365555053,1749782745257,-504.60425046,0.0002379,10]
[365555055,1749782837110,-500.0,0.00020593,2]
[365555056,1749782837133,-943.04,0.0002067,2]
[365555057,1749782837155,-589.39,0.00021175,4]
[365555058,1749782837185,-589.39,0.00021449,4]
[365555059,1749782837217,-1886.08,0.00021654,2]
[365555060,1749782837241,-589.39,0.00021723,4]
[365555061,1749782837264,-589.39,0.00021997,4]
[365555062,1749782837287,-589.39,0.00022271,4]
[365555063,1749782837309,-229.78555783,0.00022529,2]
[365555064,1749782837332,-589.39,0.00022545,4]
[365555065,1749782837355,-2829.12,0.00022639,2]
[365555066,1749782837379,-300.0,0.00022784,2]
[365555067,1749782837401,-500.0,0.00022785,2]
[365555068,1749782837423,-589.39,0.00022819,4]
[365555069,1749782837452,-460.0,0.00022999,4]
[365555070,1749782837474,-589.39,0.00023093,4]
[365555071,1749782837498,-460.0,0.00023273,4]
[365555072,1749782837521,-310.357249,0.00023324,3]
[365555073,1749782837542,-589.39,0.00023367,4]
[365555074,1749782837565,-3772.16,0.00023623,2]
[365555075,1749782837588,-589.39,0.00023641,4]
[365555076,1749782837615,-165.97291241,0.000237,2]
[365555077,1749782837637,-405.0,0.00023785,2]
[365555078,1749782837659,-483.09,0.0002379,10]
[365555079,1749782837680,-402.57,0.0002379,10]
[365555080,1749782837710,-211.54103413,0.00023797,9]
[365555081,1749782837733,-160.0,0.00023799,2]
[365555082,1749782837754,-165.216,0.00023799,5]
[365555083,1749782837778,-460.0,0.00023799,4]
[365555084,1749782837799,-87003.16963776,0.000238,3]
[365555085,1749782837818,-160.0,0.000238,3]
[365555086,1749782837840,-156.332315,0.000238,7]
[365555087,1749782837861,-156.332315,0.000238,7]
[365555088,1749782837884,-160.0,0.000238,3]
[365555089,1749782837908,-213.20212768,0.000238,3]
[365555090,1749782837931,-229.78555783,0.000238,3]
[365555091,1749782837959,-265.36494361,0.000238,3]
[365555092,1749782838139,-160.0,0.000238,3]
[365555093,1749782838162,-424.32678023,0.000238,3]
[365555094,1749782838185,-835.28007164,0.000238,3]
[365555095,1749782838218,-460.0,0.00023821,4]
[365555096,1749782838240,-150.0,0.00023823,2]
[365555097,1749782838262,-150.0,0.00023823,2]
[365555098,1749782838284,-150.119,0.00023825,2]
[365555099,1749782838306,-150.0,0.00023825,2]
[365555100,1749782838329,-150.0,0.00023825,2]
[365555101,1749782838353,-835.28007164,0.00023835,2]
[365555102,1749782838378,-160.0,0.00023835,2]
[365555103,1749782838401,-201.0,0.0002386,9]
[365555104,1749782838422,-2323.05014624,0.00023889,2]
[365555105,1749782838453,-391.02805571,0.00023907,4]
[365555106,1749782838478,-483.8717678,0.00023907,2]
[365555107,1749782838501,-5000.0,0.00023913,2]
[365555108,1749782838526,-178.0,0.00023915,2]
[365555109,1749782838548,-589.39,0.00023915,4]
[365555110,1749782838571,-127982.73839082,0.0002393,7]
[365555111,1749782838602,-211.54103413,0.00023934,10]
[365555112,1749782838626,-215.0738,0.00023957,2]
[365555113,1749782838654,-242.0,0.00023962,2]
[365555114,1749782838677,-500.0,0.00023973,2]
[365555115,1749782838708,-500.0,0.00023973,2]
[365555116,1749782838732,-515.79452384,0.00023973,2]
[365555117,1749782838756,-606.72946454,0.00023973,2]
[365555118,1749782838779,-501.37703058,0.00023973,2]
[365555119,1749782838801,-502.18448642,0.00023973,2]
[365555120,1749782838822,-504.67645881,0.00023973,2]
[365555121,1749782838843,-506.30440978,0.00023973,2]
[365555122,1749782838864,-507.6131257,0.00023973,2]
[365555123,1749782838887,-165.97291238,0.00023981,2]
[365555124,1749782838911,-152.88569936,0.00023989,2]
[365555125,1749782838935,-2685.32950693,0.00023989,2]
[365555126,1749782838962,-2685.32950693,0.00023989,2]
[365555127,1749782838986,-2685.32950693,0.00023989,2]
[365555128,1749782839009,-2685.32950693,0.00023989,2]
[365555129,1749782839032,-2685.32950693,0.00023989,2]
[365555130,1749782839061,-2685.32950693,0.00023989,2]
[365555131,1749782839085,-2685.32950693,0.00023989,2]
[365555132,1749782839108,-2685.32950693,0.00023989,2]
[365555133,1749782839135,-2685.32950693,0.00023989,2]
[365555134,1749782839160,-2685.32950693,0.00023989,2]
[365555135,1749782839183,-2685.32950693,0.00023989,2]
[365555136,1749782839216,-2685.32950693,0.00023989,2]
[365555137,1749782839240,-2685.32950693,0.00023989,2]
[365555138,1749782839262,-2685.32950693,0.00023989,2]
[365555139,1749782839286,-2685.32950693,0.00023989,2]
[365555140,1749782839310,-2685.32950693,0.00023989,2]
[365555141,1749782839333,-2685.32950693,0.00023989,2]
[365555142,1749782839359,-2685.32950693,0.00023989,2]
[365555143,1749782839385,-2685.32950693,0.00023989,2]